bitfinex/quotes_BTCUSD_20240820
["timestamp","ask_amount","ask_price","bid_price","bid_amount"]
[1724124444087,0.452365,60547.0,60546.0,3.78015167]
[1724124444409,0.419333,60547.0,60546.0,3.76615167]
[1724124444629,0.287205,60547.0,60546.0,5.28015167]
[1724124445097,0.287205,60547.0,60546.0,4.91408127]
[1724124445292,0.155077,60547.0,60546.0,5.28012234]
[1724124445545,0.11568083,60547.0,60546.0,5.28012234]
[1724124446178,0.10905206,60547.0,60546.0,5.27112234]
[1724124446377,0.07602006,60547.0,60546.0,5.27112234]
[1724124446549,6e-08,60547.0,60546.0,5.28512234]
[1724124446751,6e-08,60547.0,60546.0,5.74329547]
[1724124447112,0.000825,60556.0,60555.0,1.820529]
[1724124447324,0.000825,60556.0,60555.0,2.71531884]
[1724124448205,0.000825,60556.0,60555.0,4.22931884]
[1724124449182,0.000825,60556.0,60555.0,4.95931884]
[1724124449737,0.000825,60556.0,60555.0,4.96931884]
[1724124449994,0.000825,60556.0,60555.0,4.97904056]
[1724124450352,0.000825,60556.0,60555.0,4.96904056]
[1724124450546,0.000825,60556.0,60555.0,4.95504056]
[1724124450931,0.000825,60556.0,60555.0,4.96904056]
[1724124451150,0.000825,60556.0,60555.0,4.95504056]
[1724124451356,0.000825,60556.0,60555.0,4.96904056]
[1724124451963,0.000825,60556.0,60555.0,4.98304056]
[1724124452429,0.000825,60556.0,60555.0,4.96904056]
[1724124452804,0.000825,60556.0,60555.0,4.98304056]
[1724124453085,0.000825,60556.0,60555.0,5.10640576]
[1724124453283,0.000825,60556.0,60555.0,5.09240576]
[1724124453530,0.000825,60556.0,60555.0,4.96904056]
[1724124453708,0.000825,60556.0,60555.0,4.96504056]
[1724124454106,0.000825,60556.0,60555.0,5.10639324]
[1724124454309,0.000825,60556.0,60555.0,5.14274763]
[1724124454699,0.000825,60556.0,60555.0,5.01939495]
[1724124454913,0.000825,60556.0,60555.0,5.31684363]
[1724124455092,0.000825,60556.0,60555.0,5.14274363]
[1724124455297,0.000825,60556.0,60555.0,4.28939495]
[1724124455704,0.000825,60556.0,60555.0,4.17833456]
[1724124455705,0.081325,60556.0,60555.0,4.17833456]
[1724124455947,0.081325,60556.0,60555.0,2.3055531]
[1724124456137,0.081325,60556.0,60555.0,1.98890744]
[1724124456344,0.081325,60556.0,60555.0,1.91155416]
[1724124456549,0.081325,60556.0,60555.0,1.93244057]
[1724124456753,0.081325,60556.0,60555.0,1.96044057]
[1724124456991,0.081325,60556.0,60555.0,1.94644057]
[1724124457445,0.081325,60556.0,60555.0,1.41556257]
[1724124457446,0.144125,60556.0,60555.0,1.41556257]
[1724124457913,0.144125,60556.0,60555.0,1.37920818]
[1724124458088,0.144125,60556.0,60555.0,1.36520818]
[1724124458518,0.144125,60556.0,60555.0,1.37920818]
[1724124458875,0.144125,60556.0,60555.0,1.36220818]
[1724124459443,0.144125,60556.0,60555.0,1.37220818]
[1724124460071,0.144125,60556.0,60555.0,1.35820818]
[1724124460413,0.144125,60556.0,60555.0,1.37020818]
[1724124460658,0.144125,60556.0,60555.0,1.35820818]
[1724124461017,0.144125,60556.0,60555.0,1.37020818]
[1724124463415,0.144125,60556.0,60555.0,1.37020508]
[1724124463611,0.144125,60556.0,60555.0,1.37420508]
[1724124464021,0.144125,60556.0,60555.0,3.20448308]
[1724124464272,0.081325,60556.0,60555.0,3.2408468]
[1724124464672,0.081325,60556.0,60555.0,1.7408468]
[1724124464872,0.081325,60556.0,60555.0,1.79864387]
[1724124465425,0.081325,60556.0,60555.0,1.81488712]
[1724124465623,0.081325,60556.0,60555.0,2.18094296]
[1724124466644,0.000825,60556.0,60555.0,2.18094296]
[1724124467560,0.000825,60556.0,60555.0,2.14457163]
[1724124467824,0.000825,60556.0,60555.0,2.1809318]
[1724124468268,0.000825,60556.0,60555.0,2.10689064]
[1724124468480,0.000825,60556.0,60555.0,2.11696131]
[1724124468688,0.000825,60556.0,60555.0,2.10689064]
[1724124468943,0.000825,60556.0,60555.0,3.60289064]
[1724124469142,0.000825,60556.0,60555.0,3.60489064]
[1724124469779,0.000825,60556.0,60555.0,3.27261264]
[1724124470021,0.142225,60556.0,60555.0,1.77261264]
[1724124470819,0.142225,60556.0,60555.0,1.40655764]
[1724124471419,0.142225,60556.0,60555.0,0.8685707]
[1724124471624,0.142225,60556.0,60555.0,0.86857605]
[1724124471873,0.142225,60556.0,60555.0,0.022]
[1724124471874,1.23085377,60556.0,60555.0,0.022]
[1724124472073,1.00058177,60556.0,60555.0,0.022]
[1724124472511,1.33085377,60556.0,60555.0,0.022]
[1724124472623,1.00058177,60556.0,60555.0,0.012]
[1724124472818,1.00058177,60556.0,60547.0,0.0009086]
[1724124472819,0.1379,60548.0,60547.0,0.0009086]
[1724124473022,0.1379,60548.0,60547.0,0.1660686]
[1724124473225,0.1379,60548.0,60547.0,0.4963896]
[1724124473429,0.1369,60548.0,60547.0,0.8267106]
[1724124474250,0.1369,60548.0,60547.0,1.1580316]
[1724124474450,0.1389,60548.0,60547.0,1.1570316]
[1724124474794,0.0787,60548.0,60547.0,1.34926806]
[1724124475691,0.002,60548.0,60547.0,1.68158906]
[1724124475933,0.0794,60553.0,60552.0,1.156029]
[1724124476116,0.0794,60553.0,60552.0,1.32737777]
[1724124476335,0.0794,60553.0,60552.0,1.34825895]
[1724124476569,0.000825,60556.0,60555.0,1.155973]
[1724124476768,0.000825,60556.0,60555.0,1.32732177]
[1724124478113,0.000825,60556.0,60555.0,1.33832177]
[1724124478489,0.000825,60556.0,60555.0,1.32732177]
[1724124479062,0.000825,60556.0,60555.0,1.33932177]
[1724124479290,0.000825,60556.0,60555.0,1.35332177]
[1724124479666,0.000825,60556.0,60555.0,1.33932177]
[1724124480018,0.000825,60556.0,60555.0,1.35332177]
[1724124480828,0.000825,60556.0,60555.0,1.37419943]
[1724124481463,0.000825,60556.0,60555.0,2.07511734]
[1724124481718,0.000825,60556.0,60555.0,2.56412565]
[1724124481914,0.000825,60556.0,60555.0,2.60474116]
[1724124482269,0.000825,60556.0,60555.0,4.06838608]
[1724124482979,0.000825,60556.0,60555.0,4.05438608]
[1724124483182,0.000825,60556.0,60555.0,4.51939743]
[1724124483333,0.000825,60556.0,60555.0,4.06838608]
[1724124483544,0.000825,60556.0,60555.0,4.51915359]
[1724124483735,0.000825,60556.0,60555.0,4.74413752]
[1724124483897,0.000825,60556.0,60555.0,4.74613752]
[1724124484319,0.000825,60556.0,60555.0,4.75913752]
[1724124484526,0.000825,60556.0,60555.0,5.85941552]
[1724124484783,0.5,60557.0,60556.0,1.490224]
[1724124484997,0.5,60557.0,60556.0,2.84016497]
[1724124485209,0.5,60557.0,60556.0,3.86262059]
[1724124485341,0.5,60557.0,60556.0,3.35289259]
[1724124485792,0.5,60557.0,60556.0,3.59812508]
[1724124485995,0.5,60557.0,60556.0,4.38812508]
[1724124486362,0.5,60557.0,60556.0,4.85289259]
[1724124486758,0.5,60557.0,60556.0,4.86689259]
[1724124486964,0.5,60557.0,60556.0,5.00062421]
[1724124487422,0.5,60557.0,60556.0,5.01462421]
[1724124487723,0.5,60557.0,60556.0,5.83462421]
[1724124487950,0.5,60557.0,60556.0,5.84862421]
[1724124489200,0.5,60557.0,60556.0,5.84544526]
[1724124489403,0.5,60557.0,60556.0,5.69778709]
[1724124490028,0.5,60557.0,60556.0,5.76268709]
[1724124490230,0.5,60557.0,60556.0,5.91032038]
[1724124493364,0.5,60557.0,60556.0,5.76078908]
[1724124493830,0.5,60557.0,60556.0,5.74678908]
[1724124493963,0.5,60557.0,60556.0,5.73278908]
[1724124494191,0.5,60557.0,60556.0,5.90836832]
[1724124494794,0.5,60557.0,60556.0,5.76078908]
[1724124496068,0.334865,60557.0,60556.0,5.28697129]
[1724124496199,0.000826,60571.0,60570.0,1.816078]
[1724124496400,0.000826,60571.0,60570.0,2.24082677]
[1724124496844,0.000826,60571.0,60570.0,3.74082677]
[1724124497655,0.000826,60571.0,60570.0,3.73682677]
[1724124497859,0.000826,60571.0,60570.0,2.23682677]
[1724124498120,0.000826,60571.0,60570.0,2.01942677]
[1724124498435,0.148326,60571.0,60570.0,2.01942677]
[1724124500339,0.148326,60571.0,60570.0,2.01542677]
[1724124500568,0.148326,60571.0,60570.0,2.01642677]
[1724124502109,0.148326,60571.0,60570.0,1.68523077]
[1724124503455,0.148326,60571.0,60570.0,1.67123077]
[1724124503653,0.148326,60571.0,60570.0,1.66823077]
[1724124504070,0.148326,60571.0,60570.0,1.66723077]
[1724124504288,0.148326,60571.0,60570.0,1.67823077]
[1724124504430,0.148326,60571.0,60570.0,1.66823077]
[1724124504612,0.148326,60571.0,60570.0,1.65723077]
[1724124504824,0.148326,60571.0,60570.0,1.66623077]
[1724124505898,0.148326,60571.0,60570.0,1.67723077]
[1724124506052,0.148326,60571.0,60570.0,1.66823077]
[1724124506458,0.148326,60571.0,60570.0,1.67723077]
[1724124507116,0.148326,60571.0,60570.0,1.66823077]
[1724124507556,0.148326,60571.0,60570.0,1.67723077]
[1724124513395,0.148326,60571.0,60570.0,1.76773077]
[1724124521132,0.148326,60571.0,60570.0,1.75873077]
[1724124521347,0.148326,60571.0,60570.0,1.65723077]
[1724124522412,0.148326,60571.0,60570.0,1.66623077]
[1724124522613,0.148326,60571.0,60570.0,1.67723077]
[1724124522871,0.61404632,60589.0,60570.0,1.67723077]
[1724124522872,0.0986111,60602.0,60596.0,1.52854167]
[1724124523092,0.52229632,60618.0,60606.0,0.825]
[1724124523306,0.00825,60618.0,60606.0,0.1915]
[1724124523509,0.00825,60618.0,60614.0,0.91539]
[1724124523709,0.00825,60618.0,60614.0,1.245346]
[1724124523915,0.00825,60618.0,60614.0,1.65615077]
[1724124524127,0.00825,60618.0,60614.0,1.32619477]
[1724124524335,0.00825,60618.0,60614.0,2.84698714]
[1724124524554,0.00825,60618.0,60614.0,3.22230943]
[1724124524754,0.00825,60618.0,60614.0,3.23457793]
[1724124525373,0.00825,60618.0,60614.0,3.22653637]
[1724124525585,0.00825,60618.0,60614.0,1.67141927]
[1724124525790,0.00825,60618.0,60614.0,1.74657121]
[1724124525999,0.00825,60618.0,60614.0,1.75757121]
[1724124526789,0.00825,60618.0,60614.0,1.73757121]
[1724124526966,0.00825,60618.0,60614.0,1.72853112]
[1724124527168,0.00825,60618.0,60614.0,1.83836817]
[1724124527397,0.00825,60618.0,60614.0,2.09017527]
[1724124527601,0.00825,60618.0,60614.0,2.15631411]
[1724124527791,0.00825,60618.0,60614.0,2.17031411]
[1724124528022,0.00825,60618.0,60614.0,2.16127685]
[1724124528236,0.00825,60618.0,60614.0,2.17031319]
[1724124528625,0.00825,60618.0,60614.0,2.15931319]
[1724124528828,0.00825,60618.0,60614.0,2.38521319]
[1724124529530,0.00825,60618.0,60614.0,4.04047631]
[1724124529786,0.00825,60618.0,60614.0,4.05447631]
[1724124530130,0.00825,60618.0,60614.0,3.82857631]
[1724124530502,0.00825,60618.0,60614.0,4.05447631]
[1724124530677,0.00825,60618.0,60614.0,4.01815802]
[1724124532225,0.00825,60618.0,60614.0,2.51815802]
[1724124532834,0.00825,60618.0,60614.0,4.01815802]
[1724124533457,0.00825,60618.0,60614.0,4.77815802]
[1724124534268,0.00825,60618.0,60614.0,4.01815802]
[1724124536819,0.00825,60618.0,60614.0,4.01816002]
[1724124537432,0.00825,60618.0,60616.0,0.003]
[1724124537638,0.00825,60618.0,60616.0,1.99234451]
[1724124537977,0.000826,60625.0,60624.0,1.154657]
[1724124538179,0.000826,60625.0,60624.0,1.484559]
[1724124538418,0.000826,60625.0,60624.0,1.4965656]
[1724124540308,0.04438509,60631.0,60630.0,0.494803]
[1724124540464,0.06,60637.0,60631.0,0.164932]
[1724124540683,0.06,60637.0,60631.0,1.759307]
[1724124540894,0.06,60637.0,60631.0,1.329171]
[1724124541372,0.06,60637.0,60631.0,1.659035]
[1724124541589,0.06,60637.0,60631.0,1.67092195]
[1724124542659,0.06,60637.0,60631.0,1.69892195]
[1724124542868,0.06,60637.0,60631.0,1.69792195]
[1724124543637,0.06,60637.0,60631.0,1.69892195]
[1724124543838,0.06,60637.0,60631.0,1.69792195]
[1724124544267,0.06,60637.0,60631.0,1.69892195]
[1724124544465,0.0787,60639.0,60631.0,1.71969709]
[1724124544814,0.0787,60639.0,60631.0,1.71739886]
[1724124544940,0.0002,60639.0,60631.0,1.71739886]
[1724124545138,0.0002,60639.0,60631.0,1.71962372]
[1724124545341,0.0002,60639.0,60631.0,2.07025806]
[1724124545620,0.0002,60639.0,60631.0,2.17025806]
[1724124546376,0.0002,60639.0,60631.0,2.28476654]
[1724124547192,0.0002,60639.0,60631.0,3.78476654]
[1724124547597,0.0002,60639.0,60631.0,3.78567294]
[1724124548042,0.0002,60639.0,60638.0,1.485217]
[1724124548366,0.0002,60639.0,60638.0,1.9149886]
[1724124548569,0.0002,60639.0,60638.0,1.9139886]
[1724124548781,0.0002,60639.0,60638.0,1.6890886]
[1724124549096,0.0002,60639.0,60638.0,3.18909173]
[1724124549303,0.0002,60639.0,60638.0,3.20309173]
[1724124549496,0.0002,60639.0,60638.0,3.21709173]
[1724124550399,0.0002,60639.0,60638.0,3.25340048]
[1724124550595,0.0002,60639.0,60638.0,1.75340048]
[1724124551484,0.0002,60639.0,60638.0,1.7624318]
[1724124552971,0.0775,60647.0,60638.0,1.5985188]
[1724124553125,0.0775,60647.0,60646.0,1.154237]
[1724124553339,0.0775,60647.0,60646.0,1.18660376]
[1724124553920,0.0775,60657.0,60656.0,0.164864]
[1724124554123,0.0775,60657.0,60656.0,0.18563169]
[1724124554449,0.0775,60657.0,60656.0,1.1862455]
[1724124556603,0.0775,60657.0,60656.0,1.1892455]
[1724124556966,0.0775,60657.0,60656.0,1.17347781]
[1724124557347,0.0775,60657.0,60656.0,1.1942422]
[1724124559096,0.078324,60657.0,60656.0,1.1942422]
[1724124560971,0.078324,60657.0,60656.0,1.17347781]
[1724124561155,0.078324,60657.0,60656.0,1.19424007]
[1724124564225,0.078324,60657.0,60656.0,1.17347781]
[1724124564430,0.078324,60657.0,60656.0,1.19424276]
[1724124567648,0.078324,60657.0,60656.0,1.19424098]
[1724124571904,0.078324,60657.0,60656.0,1.23054609]
[1724124572101,0.078324,60657.0,60656.0,1.19424098]
[1724124572315,0.078324,60657.0,60656.0,1.23054609]
[1724124572762,0.078324,60657.0,60656.0,1.19424098]
[1724124573190,0.078324,60657.0,60656.0,1.17347781]
[1724124573389,0.078324,60657.0,60656.0,1.19424576]
[1724124574441,0.078324,60657.0,60656.0,1.23055087]
[1724124574788,0.078324,60657.0,60656.0,1.19424576]
[1724124576975,0.078324,60657.0,60656.0,1.19425517]
[1724124577178,0.078324,60657.0,60656.0,0.86452714]
[1724124581275,0.078324,60657.0,60656.0,0.84374981]
[1724124581469,0.078324,60657.0,60656.0,0.53480185]
[1724124581690,0.078324,60657.0,60656.0,0.01942981]
[1724124581876,0.142224,60657.0,60656.0,0.20507646]
[1724124586052,0.142224,60657.0,60656.0,0.20207646]
[1724124586271,0.142224,60657.0,60656.0,0.19707646]
[1724124588074,0.142224,60657.0,60656.0,0.85653246]
[1724124589909,0.142224,60657.0,60656.0,0.83574981]
[1724124590108,0.142224,60657.0,60656.0,0.85653514]
[1724124590499,0.142224,60657.0,60656.0,0.52680714]
[1724124591124,0.142224,60657.0,60656.0,0.03221514]
[1724124593373,0.142224,60657.0,60656.0,0.01142981]
[1724124593525,0.142224,60657.0,60653.0,0.16487]
[1724124593731,0.142224,60657.0,60654.0,0.020789]
[1724124594003,0.142224,60657.0,60655.0,0.020789]
[1724124594209,0.142224,60657.0,60654.0,0.17632419]
[1724124594411,0.142224,60657.0,60655.0,0.02078638]
[1724124594727,0.142224,60657.0,60654.0,0.17632419]
[1724124594913,0.142224,60657.0,60655.0,0.02078618]
[1724124595042,0.142224,60657.0,60654.0,0.17632419]
[1724124595248,0.142224,60657.0,60655.0,0.02078617]
[1724124595453,0.142224,60657.0,60654.0,0.17632419]
[1724124595664,0.142224,60657.0,60655.0,0.02078546]
[1724124595881,0.142224,60657.0,60656.0,0.02078546]
[1724124596947,0.142224,60657.0,60656.0,0.18564946]
[1724124597145,0.142224,60657.0,60656.0,0.1970718]
[1724124598541,0.142224,60657.0,60656.0,0.19706654]
[1724124600798,0.142224,60657.0,60656.0,0.03220254]
[1724124602737,1.24618627,60657.0,60656.0,0.03220254]
[1724124602960,1.70913706,60657.0,60656.0,0.01142234]
[1724124603112,1.73384554,60657.0,60656.0,0.01142234]
[1724124603309,1.63501162,60657.0,60656.0,0.01142234]
[1724124603514,1.63801162,60657.0,60656.0,0.01142234]
[1724124603717,1.63501162,60657.0,60656.0,0.01142234]
[1724124604154,1.63501162,60657.0,60656.0,0.01242234]
[1724124604355,1.7191407,60657.0,60656.0,0.01342234]
[1724124605426,1.64804571,60657.0,60656.0,0.01242234]
[1724124605727,1.64504571,60657.0,60656.0,0.01242234]
[1724124606167,1.7191407,60657.0,60656.0,0.01242234]
[1724124606342,1.64504571,60657.0,60656.0,0.01242234]
[1724124606756,1.64504571,60657.0,60656.0,0.01342234]
[1724124606958,1.91746164,60657.0,60656.0,0.01342234]
[1724124607160,1.84339448,60657.0,60656.0,0.01342234]
[1724124607349,1.96681311,60657.0,60656.0,0.01342234]
[1724124607582,1.67204571,60657.0,60656.0,0.01342234]
[1724124607978,1.67204571,60657.0,60656.0,0.01242234]
[1724124608150,1.67204571,60657.0,60656.0,0.01342234]
[1724124608734,1.67204571,60657.0,60656.0,0.01242234]
[1724124609115,1.77934571,60657.0,60656.0,0.01342234]
[1724124609331,1.80340205,60657.0,60656.0,0.01342234]
[1724124609779,1.92269019,60657.0,60656.0,0.01342234]
[1724124609982,1.92369019,60657.0,60656.0,0.01342234]
[1724124610236,2.25338619,60657.0,60656.0,0.01342234]
[1724124610670,2.25238619,60657.0,60656.0,0.01342234]
[1724124610868,2.13309805,60657.0,60656.0,0.01342234]
[1724124611067,2.13409805,60657.0,60656.0,0.01342234]
[1724124611480,2.01076771,60657.0,60656.0,0.01342234]
[1724124612110,2.00976771,60657.0,60656.0,0.01342234]
[1724124612320,2.10939904,60657.0,60656.0,0.01342234]
[1724124612862,2.28074781,60657.0,60656.0,0.01342234]
[1724124613059,2.27974781,60657.0,60656.0,0.01342234]
[1724124613283,2.28074781,60657.0,60656.0,0.01342234]
[1724124613533,2.27974781,60657.0,60656.0,0.01342234]
[1724124613736,2.28073743,60657.0,60656.0,0.01342234]
[1724124613942,2.10938866,60657.0,60656.0,0.01342234]
[1724124614152,2.01076771,60657.0,60656.0,0.01342234]
[1724124614362,2.10937692,60657.0,60656.0,0.01342234]
[1724124614753,2.10637692,60657.0,60656.0,0.01342234]
[1724124615145,2.10937692,60657.0,60656.0,0.01342234]
[1724124615494,2.10937692,60657.0,60656.0,0.002]
[1724124615928,2.01076771,60657.0,60656.0,0.002]
[1724124620284,2.08470696,60657.0,60656.0,0.002]
[1724124620604,2.01076771,60657.0,60656.0,0.002]
[1724124621359,2.08470649,60657.0,60656.0,0.002]
[1724124621578,2.18211648,60657.0,60656.0,0.002]
[1724124622319,2.2560556,60657.0,60656.0,0.002]
[1724124622524,2.27251648,60657.0,60656.0,0.002]
[1724124622811,2.10116771,60657.0,60656.0,0.002]
[1724124627646,2.19976369,60657.0,60656.0,0.002]
[1724124628472,2.10016771,60657.0,60656.0,0.002]
[1724124628661,2.09816771,60657.0,60656.0,0.002]
[1724124629227,2.10116771,60657.0,60656.0,0.002]
[1724124629430,2.09816771,60657.0,60656.0,0.002]
[1724124629957,2.26951648,60657.0,60656.0,0.002]
[1724124630850,2.27151648,60657.0,60656.0,0.002]
[1724124631066,2.27251648,60657.0,60656.0,0.002]
[1724124631270,2.26951648,60657.0,60656.0,0.002]
[1724124631532,2.27151648,60657.0,60656.0,0.002]
[1724124631708,2.27251648,60657.0,60656.0,0.002]
[1724124632913,2.26951648,60657.0,60656.0,0.002]
[1724124633113,2.39277391,60657.0,60656.0,0.002]
[1724124633497,2.26951648,60657.0,60656.0,0.002]
[1724124634012,0.824537,60640.0,60639.0,0.0009064]
[1724124634152,1.18628577,60640.0,60639.0,0.0009064]
[1724124635510,1.19228577,60640.0,60639.0,0.0009064]
[1724124635997,1.18628577,60640.0,60639.0,0.0009064]
[1724124636202,1.19228577,60640.0,60639.0,0.0009064]
[1724124636538,1.52210077,60640.0,60639.0,0.0009064]
[1724124636748,1.61509053,60640.0,60639.0,0.0009064]
[1724124636954,1.58957408,60640.0,60639.0,0.0009064]
[1724124637155,1.60470077,60640.0,60639.0,0.0009064]
[1724124637552,1.6721769,60640.0,60639.0,0.0009064]
[1724124637994,1.6801769,60640.0,60639.0,0.0009064]
[1724124638447,1.6861769,60640.0,60639.0,0.0009064]
[1724124638603,1.6721769,60640.0,60639.0,0.0009064]
[1724124638804,1.85519459,60640.0,60639.0,0.0009064]
[1724124639733,1.69634249,60640.0,60639.0,0.0009064]
[1724124640557,1.61374249,60640.0,60639.0,0.0009064]
[1724124643197,0.3588249,60640.0,60639.0,0.0644064]
[1724124643467,0.54665577,60640.0,60639.0,0.1452064]
[1724124643779,0.54665577,60640.0,60639.0,0.15700724]
[1724124645727,0.89745986,60640.0,60639.0,0.15700724]
[1724124649375,0.87647077,60640.0,60639.0,0.15700724]
[1724124652575,1.20628577,60640.0,60639.0,0.01270724]
[1724124653624,1.25574093,60640.0,60639.0,0.01270724]
[1724124654235,1.73025593,60640.0,60639.0,0.01270724]
[1724124654422,2.01760915,60640.0,60639.0,0.01270724]
[1724124654623,1.93942641,60640.0,60639.0,0.01270724]
[1724124654848,1.87449501,60640.0,60639.0,0.01270724]
[1724124655027,1.87049465,60640.0,60639.0,0.01270724]
[1724124655406,2.20330965,60640.0,60639.0,0.01270724]
[1724124655615,2.25475496,60640.0,60639.0,0.01270724]
[1724124655812,2.25477933,60640.0,60639.0,0.01270724]
[1724124655993,2.20809955,60640.0,60639.0,0.01270724]
[1724124656186,2.20209955,60640.0,60639.0,0.01270724]
[1724124656491,1.82653046,60640.0,60639.0,0.01270724]
[1724124656711,1.9119298,60640.0,60639.0,0.01270724]
[1724124656926,1.77757448,60640.0,60639.0,0.01370724]
[1724124657544,1.76357448,60640.0,60639.0,0.01270724]
[1724124658081,1.76357448,60640.0,60639.0,0.01370724]
[1724124658082,1.77357448,60640.0,60639.0,0.01370724]
[1724124658283,1.62887448,60640.0,60639.0,0.01370724]
[1724124658498,1.62087448,60640.0,60639.0,0.01370724]
[1724124658751,1.63487448,60640.0,60639.0,0.01370724]
[1724124660322,1.54447448,60640.0,60639.0,0.01370724]
[1724124660542,1.63487448,60640.0,60639.0,0.01370724]
[1724124661406,1.63887448,60640.0,60639.0,0.01370724]
[1724124661552,1.63787448,60640.0,60639.0,0.01370724]
[1724124662071,1.63487448,60640.0,60639.0,0.01370724]
[1724124662308,1.31521814,60640.0,60639.0,0.01370724]
[1724124662518,1.38090364,60640.0,60639.0,0.01370724]
[1724124662653,1.28205948,60640.0,60639.0,0.01370724]
[1724124663283,1.28305948,60640.0,60639.0,0.01370724]
[1724124663485,1.28205948,60640.0,60639.0,0.01370724]
[1724124664507,1.88702325,60640.0,60639.0,0.01370724]
[1724124664713,1.94972325,60640.0,60639.0,0.01370724]
[1724124664928,1.77837448,60640.0,60639.0,0.01370724]
[1724124665142,1.9297298,60640.0,60639.0,0.01370724]
[1724124666002,2.2595448,60640.0,60639.0,0.01370724]
[1724124666905,2.11118948,60640.0,60639.0,0.01370724]
[1724124668491,2.25940006,60640.0,60639.0,0.01370724]
[1724124668697,2.43074883,60640.0,60639.0,0.01370724]
[1724124669210,2.25540006,60640.0,60639.0,0.01370724]
[1724124669634,2.25640006,60640.0,60639.0,0.01370724]
[1724124670420,2.25540006,60640.0,60639.0,0.01370724]
[1724124670956,2.10718948,60640.0,60639.0,0.01370724]
[1724124671161,2.25540006,60640.0,60639.0,0.01370724]
[1724124671602,2.28253825,60640.0,60639.0,0.01370724]
[1724124671742,2.43074883,60640.0,60639.0,0.01370724]
[1724124672763,2.28253825,60640.0,60639.0,0.01370724]
[1724124673167,2.43074883,60640.0,60639.0,0.01370724]
[1724124673781,2.42971838,60640.0,60639.0,0.01370724]
[1724124673988,2.28153825,60640.0,60639.0,0.01370724]
[1724124674189,2.27953825,60640.0,60639.0,0.01370724]
[1724124675237,2.28253825,60640.0,60639.0,0.01370724]
[1724124678016,2.43068642,60640.0,60639.0,0.01370724]
[1724124678629,2.43068642,60640.0,60631.0,0.0009064]
[1724124678630,1.551561,60632.0,60631.0,0.0009064]
[1724124678830,2.06278348,60632.0,60631.0,0.0009064]
[1724124679071,1.93688348,60632.0,60631.0,0.0009064]
[1724124680246,1.94671374,60632.0,60631.0,0.0009064]
[1724124681441,1.62520084,60632.0,60631.0,0.1422064]
[1724124681656,1.66791404,60632.0,60631.0,0.1422064]
[1724124681854,1.57545224,60632.0,60631.0,0.1422064]
[1724124682070,1.60245224,60632.0,60631.0,0.1422064]
[1724124682520,1.59745224,60632.0,60631.0,0.1422064]
[1724124684164,1.26759424,60632.0,60631.0,0.1422064]
[1724124684364,1.21822403,60632.0,60631.0,0.1422064]
[1724124685408,1.28601656,60632.0,60631.0,0.1422064]
[1724124688606,1.45736533,60632.0,60631.0,0.1422064]
[1724124688811,1.45736533,60632.0,60631.0,0.0009064]
[1724124689004,1.61587456,60632.0,60631.0,0.0009064]
[1724124690330,1.66524477,60632.0,60631.0,0.0009064]
[1724124692405,1.63887456,60632.0,60631.0,0.0009064]
[1724124693383,1.71293286,60632.0,60631.0,0.0009064]
[1724124695295,1.63887456,60632.0,60631.0,0.0009064]
[1724124696266,1.73761966,60632.0,60631.0,0.0009064]
[1724124697892,1.63887456,60632.0,60631.0,0.0009064]
[1724124698350,1.68548456,60632.0,60631.0,0.0009064]
[1724124698572,1.68948456,60632.0,60631.0,0.0009064]
[1724124698783,1.68548456,60632.0,60631.0,0.0009064]
[1724124699877,1.68748456,60632.0,60631.0,0.0009064]
[1724124700651,1.68548456,60632.0,60631.0,0.0009064]
[1724124700860,1.68631056,60632.0,60631.0,0.0009064]
[1724124701267,1.83461547,60632.0,60631.0,0.0009064]
[1724124702354,1.91861547,60632.0,60631.0,0.0009064]
[1724124702562,1.91876634,60632.0,60631.0,0.0009064]
[1724124702752,1.91476634,60632.0,60631.0,0.0009064]
[1724124703483,1.91676634,60632.0,60631.0,0.0009064]
[1724124703669,1.91476634,60632.0,60631.0,0.0009064]
[1724124704854,1.91676634,60632.0,60631.0,0.0009064]
[1724124705027,1.91476634,60632.0,60631.0,0.0009064]
[1724124706015,1.86815634,60632.0,60631.0,0.0009064]
[1724124706746,1.78815634,60632.0,60631.0,0.0009064]
[1724124708396,1.63970056,60632.0,60631.0,0.0009064]
[1724124715186,1.78821689,60632.0,60631.0,0.0009064]
[1724124715809,1.63970056,60632.0,60631.0,0.0009064]
[1724124716789,1.78821683,60632.0,60631.0,0.0009064]
[1724124717391,1.69781683,60632.0,60631.0,0.0009064]
[1724124717548,1.43535883,60632.0,60631.0,0.0820064]
[1724124717754,1.28684256,60632.0,60631.0,0.0820064]
[1724124725429,0.86658456,60632.0,60631.0,0.0820064]
[1724124725842,1.08074306,60632.0,60631.0,0.0820064]
[1724124726191,0.09561853,60632.0,60631.0,0.1450064]
[1724124726397,0.118226,60632.0,60631.0,0.1450064]
[1724124727492,0.16771244,60632.0,60631.0,0.1450064]
[1724124727690,0.26771244,60632.0,60631.0,0.6398024]
[1724124727904,0.17731244,60632.0,60631.0,0.3099384]
[1724124728384,0.127826,60632.0,60631.0,0.1450064]
[1724124728597,0.113826,60632.0,60631.0,0.1450064]
[1724124729447,0.100826,60632.0,60631.0,0.1450064]
[1724124729854,0.126826,60632.0,60631.0,0.1450064]
[1724124730062,0.114826,60632.0,60631.0,0.1450064]
[1724124730261,0.109826,60632.0,60631.0,0.1450064]
[1724124730683,0.123826,60632.0,60631.0,0.1450064]
[1724124731171,0.100826,60632.0,60631.0,0.1450064]
[1724124731384,0.000826,60632.0,60631.0,0.3099384]
[1724124731524,0.014826,60632.0,60631.0,0.1450064]
[1724124731731,0.114826,60632.0,60631.0,0.1450064]
[1724124731984,0.114826,60632.0,60631.0,0.6398024]
[1724124732163,0.114826,60632.0,60631.0,0.3099384]
[1724124732564,0.122826,60632.0,60631.0,0.3099384]
[1724124732928,0.122826,60632.0,60631.0,0.1450064]
[1724124733504,0.022826,60632.0,60631.0,0.1450064]
[1724124734972,0.468926,60632.0,60631.0,0.1450064]
[1724124736203,0.468926,60632.0,60631.0,0.9696664]
[1724124736373,0.468926,60632.0,60631.0,0.9905089]
[1724124737194,0.446926,60632.0,60631.0,0.9905089]
[1724124737577,0.466926,60632.0,60631.0,0.9905089]
[1724124737782,0.466926,60632.0,60631.0,1.0809089]
[1724124737983,0.12541366,60632.0,60631.0,3.06117616]
[1724124738274,0.000826,60656.0,60655.0,0.842932]
[1724124738451,0.000826,60656.0,60655.0,1.250365]
[1724124738452,0.096226,60656.0,60655.0,1.250365]